fUST/lending_fUST_20250615
["ID","MTS","AMOUNT","RATE_DAILY","PERIOD"]
[365844560,1749954636155,-460.0,0.00021917,4]
[365844561,1749954636164,-460.0,0.00021917,4]
[365844562,1749954636173,-804.27,0.00021917,4]
[365844563,1749954636183,-453.9084431,0.00021917,4]
[365844564,1749954636192,-500.0,0.00021917,4]
[365844565,1749954636201,-226.44494418,0.00021917,4]
[365844578,1749954638594,-604.71505582,0.00021917,4]
[365844579,1749954638603,-500.0,0.00021917,4]
[365844580,1749954638613,-645.34437065,0.00021917,4]
[365844581,1749954638623,-566.54,0.00021917,2]
[365844582,1749954638632,-684.13,0.00021917,4]
[365844583,1749954638642,-816.86,0.00021917,4]
[365844584,1749954638652,-609.0,0.00021917,4]
[365844585,1749954638661,-460.0,0.00021917,4]
[365844586,1749954638671,-451.50101907,0.00021917,4]
[365844587,1749954638680,-433.76293651,0.00021917,4]
[365844588,1749954638690,-577.95,0.00021917,4]
[365844589,1749954638699,-460.0,0.00021917,4]
[365844590,1749954638709,-460.0,0.00021917,4]
[365844591,1749954638719,-403.69794397,0.00021917,4]
[365844592,1749954638730,-1734.77,0.00021917,4]
[365844593,1749954638739,-460.0,0.00021917,4]
[365844594,1749954638749,-481.07,0.00021917,4]
[365844595,1749954638759,-460.0,0.00021917,4]
[365844596,1749954638768,-460.0,0.00021917,4]
[365844598,1749954638778,-376.26179637,0.00021917,4]
[365844600,1749954638787,-460.0,0.00021917,4]
[365844602,1749954638798,-460.0,0.00021917,4]
[365844604,1749954638807,-214.48300459,0.00021917,4]
[365844606,1749954638819,-245.51699541,0.00021917,4]
[365844607,1749954638827,-460.0,0.00021917,4]
[365844608,1749954638837,-460.0,0.00021917,4]
[365844609,1749954638846,-460.0,0.00021917,4]
[365844610,1749954638855,-695.4,0.00021917,4]
[365844611,1749954638865,-460.0,0.00021917,4]
[365844612,1749954638874,-460.0,0.00021917,4]
[365844613,1749954638883,-460.0,0.00021917,4]
[365844614,1749954638893,-466.41914392,0.00021917,4]
[365844615,1749954638902,-3293.23,0.00021917,4]
[365844616,1749954638911,-460.0,0.00021917,4]
[365844617,1749954638921,-400.88987775,0.00021917,4]
[365844618,1749954638931,-460.0,0.00021917,4]
[365844619,1749954638940,-406.29795487,0.00021917,4]
[365844620,1749954638949,-2865.98,0.00021917,4]
[365844621,1749954638958,-431.64977043,0.00021917,4]
[365844622,1749954638967,-460.0,0.00021917,4]
[365844623,1749954638977,-460.0,0.00021917,4]
[365844624,1749954638986,-500.0,0.00021917,4]
[365844625,1749954638995,-3795.48,0.00021917,4]
[365844626,1749954639004,-1832.68,0.00021917,4]
[365844627,1749954639013,-460.0,0.00021917,4]
[365844628,1749954639022,-401.70528201,0.00021917,4]
[365844629,1749954639031,-151.0,0.00021917,4]
[365844630,1749954639041,-801.64,0.00021917,4]
[365844631,1749954639050,-460.0,0.00021917,4]
[365844632,1749954639059,-431.49878641,0.00021917,4]
[365844633,1749954639069,-430.55877345,0.00021917,4]
[365844634,1749954639078,-435.30899228,0.00021917,4]
[365844635,1749954639087,-460.0,0.00021917,4]
[365844636,1749954639096,-460.0,0.00021917,4]
[365844637,1749954639105,-460.0,0.00021917,4]
[365844638,1749954639115,-469.05928685,0.00021917,4]
[365844639,1749954639124,-1305.94,0.00021917,4]
[365844640,1749954639133,-460.0,0.00021917,4]
[365844641,1749954639142,-340.0,0.00021917,4]
[365844642,1749954639151,-460.0,0.00021917,4]
[365844643,1749954639160,-460.0,0.00021917,4]
[365844644,1749954639169,-460.0,0.00021917,4]
[365844645,1749954639179,-449.25015475,0.00021917,4]
[365844646,1749954639187,-460.0,0.00021917,4]
[365844647,1749954639196,-450.85962376,0.00021917,4]
[365844648,1749954639205,-432.31520987,0.00021917,4]
[365844649,1749954639214,-431.44804197,0.00021917,4]
[365844650,1749954639223,-1468.44,0.00021917,4]
[365844651,1749954639232,-460.0,0.00021917,4]
[365844652,1749954639241,-500.0,0.00021917,4]
[365844653,1749954639250,-460.0,0.00021917,4]
[365844654,1749954639260,-454.09397772,0.00021917,4]
[365844655,1749954639269,-471.91536304,0.00021917,4]
[365844656,1749954639279,-460.0,0.00021917,4]
[365844657,1749954639288,-876.43,0.00021917,4]
[365844658,1749954639297,-460.0,0.00021917,4]
[365844659,1749954639307,-460.0,0.00021917,4]
[365844660,1749954639316,-723.62,0.00021917,4]
[365844661,1749954639326,-460.0,0.00021917,4]
[365844662,1749954639336,-460.0,0.00021917,4]
[365844663,1749954639347,-460.0,0.00021917,4]
[365844664,1749954639356,-487.73,0.00021917,4]
[365844665,1749954639365,-460.0,0.00021917,4]
[365844666,1749954639375,-557.24848393,0.00021917,4]
[365844667,1749954639385,-460.0,0.00021917,4]
[365844668,1749954639394,-478.49,0.00021917,4]
[365844669,1749954639404,-460.0,0.00021917,4]
[365844670,1749954639413,-460.0,0.00021917,4]
[365844671,1749954639423,-460.0,0.00021917,4]
[365844672,1749954639433,-1956.94,0.00021917,4]
[365844673,1749954639443,-360.0,0.00021917,4]
[365844674,1749954639451,-444.87275625,0.00021917,4]
[365844675,1749954639461,-460.0,0.00021917,4]
[365844676,1749954639470,-460.0,0.00021917,4]
[365844677,1749954639479,-460.0,0.00021917,4]
[365844678,1749954639489,-460.0,0.00021917,4]
[365844679,1749954639498,-460.0,0.00021917,4]
[365844680,1749954639508,-460.0,0.00021917,4]
[365844681,1749954639517,-460.0,0.00021917,4]
[365844682,1749954639527,-599.55,0.00021917,4]
[365844683,1749954639535,-408.07064671,0.00021917,4]
[365844684,1749954639544,-460.0,0.00021917,4]
[365844685,1749954639553,-492.17213166,0.00021917,4]
[365844686,1749954639563,-771.81,0.00021917,4]
[365844687,1749954639572,-235.52067776,0.00021917,4]
[365844688,1749954639581,-547.36,0.00021917,4]
[365844689,1749954639590,-460.0,0.00021917,4]
[365844690,1749954639599,-460.0,0.00021917,4]
[365844691,1749954639608,-460.0,0.00021917,4]
[365844692,1749954639618,-460.0,0.00021917,4]
[365844693,1749954639627,-460.0,0.00021917,4]
[365844694,1749954639636,-550.37,0.00021917,4]
[365844695,1749954639646,-460.0,0.00021917,4]
[365844696,1749954639655,-460.0,0.00021917,4]
[365844697,1749954639665,-460.0,0.00021917,4]
[365844698,1749954639674,-848.24,0.00021917,4]
[365844699,1749954639683,-1181.15,0.00021917,4]
[365844700,1749954639692,-460.0,0.00021917,4]
[365844701,1749954639701,-1788.48,0.00021917,4]
[365844702,1749954639712,-3035.77,0.00021917,4]
[365844703,1749954639724,-359.91853106,0.00021917,4]
[365844704,1749954639733,-460.0,0.00021917,4]
[365844705,1749954639742,-573.35,0.00021917,4]
[365844706,1749954639751,-460.0,0.00021917,4]
[365844707,1749954639763,-460.0,0.00021917,4]
[365844708,1749954639772,-420.0,0.00021917,4]
[365844709,1749954639781,-460.0,0.00021917,4]
[365844710,1749954639789,-460.0,0.00021917,4]
[365844711,1749954639800,-460.0,0.00021917,4]
[365844712,1749954639809,-460.0,0.00021917,4]
[365844713,1749954639818,-460.0,0.00021917,4]
[365844714,1749954639828,-2351.53,0.00021917,4]
[365844715,1749954639838,-460.0,0.00021917,4]
[365844716,1749954639848,-457.88122555,0.00021917,4]
[365844717,1749954639859,-460.0,0.00021917,4]
[365844718,1749954639869,-460.0,0.00021917,4]
[365844719,1749954639879,-474.97,0.00021917,4]
[365844720,1749954639889,-26.22016368,0.00021917,4]
[365844721,1749954639902,-433.77983632,0.00021917,4]
[365844722,1749954639912,-599.49,0.00021917,4]
[365844723,1749954639921,-460.0,0.00021917,4]
[365844724,1749954639930,-460.0,0.00021917,4]
[365844725,1749954639940,-460.39295255,0.00021917,4]
[365844726,1749954639950,-451.09456013,0.00021917,4]
[365844727,1749954639961,-497.51,0.00021917,4]
[365844728,1749954639970,-460.0,0.00021917,4]
[365844729,1749954639980,-434.63282261,0.00021917,4]
[365844730,1749954639990,-482.65116967,0.00021917,4]
[365844731,1749954639999,-460.0,0.00021917,4]
[365844732,1749954640010,-152.85945878,0.00021917,4]
[365844733,1749954640021,-304.46844193,0.00021917,4]
[365844734,1749954640032,-2.67209929,0.00021917,4]
[365844735,1749954640041,-420.0,0.00021917,4]
[365844736,1749954640053,-348.31960802,0.00021917,4]
[365844737,1749954640062,-460.0,0.00021917,4]
[365844738,1749954640071,-436.58316181,0.00021917,4]
[365844739,1749954640080,-460.0,0.00021917,4]
[365844740,1749954640089,-460.0,0.00021917,4]
[365844741,1749954640098,-460.0,0.00021917,4]
[365844742,1749954640108,-460.0,0.00021917,4]
[365844743,1749954640117,-460.0,0.00021917,4]
[365844744,1749954640126,-460.14472562,0.00021917,4]
[365844745,1749954640136,-460.0,0.00021917,4]
[365844746,1749954640146,-457.03104692,0.00021917,4]
[365844747,1749954640155,-2043.55,0.00021917,4]
[365844748,1749954640164,-445.44567713,0.00021917,4]
[365844750,1749954640174,-487.85931264,0.00021917,4]
[365844752,1749954640184,-433.95458784,0.00021917,4]
[365844753,1749954640193,-373.89349763,0.00021917,4]
[365844755,1749954640202,-460.0,0.00021917,4]
[365844757,1749954640211,-467.62763219,0.00021917,4]
[365844758,1749954640220,-144.47933917,0.00021917,4]
[365844759,1749954640236,-315.52066083,0.00021917,4]
[365844760,1749954640245,-65.11230897,0.00021917,4]
[365844761,1749954640256,-617.97769103,0.00021917,4]
[365844762,1749954640266,-460.0,0.00021917,4]
[365844763,1749954640274,-2231.34,0.00021917,4]
[365844764,1749954640284,-192.92031025,0.00021944,4]
[365844765,1749954640293,-151.0,0.00021944,2]
[365844766,1749954640303,-500.0,0.00021944,4]
[365844767,1749954640312,-151.28406849,0.00021944,4]
[365844768,1749954640322,-202.25871371,0.00021972,2]
[365844769,1749954640331,-500.0,0.00021972,4]
[365844770,1749954640340,-515.24186318,0.00021973,2]
[365844771,1749954640349,-500.0,0.00021973,2]
[365844772,1749954640363,-207.4,0.00021987,2]
[365844773,1749954640375,-505.61216058,0.00021999,4]
[365844774,1749954640384,-9453.28127477,0.00022,2]
[365844777,1749954640514,-2827.02347375,0.00022,2]
[365844779,1749954640527,-2715.27653771,0.00022,2]
[365844780,1749954640538,-1235.39176935,0.00022,2]
[365844781,1749954640550,-444.99950906,0.00022,2]
[365844784,1749954640566,-64334.48629548,0.00022,2]
[365844786,1749954640575,-3755.99599084,0.00022091,2]
[365844787,1749954640584,-500.0,0.00022106,4]
[365844788,1749954640593,-500.0,0.00022106,4]
[365844789,1749954640602,-345.29516723,0.0002219,4]
[365844790,1749954640612,-500.0,0.0002219,4]
[365844791,1749954640621,-460.0,0.00022191,4]
[365844792,1749954640631,-460.0,0.00022191,4]
[365844793,1749954640640,-553.98110022,0.00022191,4]
[365844794,1749954640649,-460.0,0.00022191,4]
[365844795,1749954640660,-338.14577533,0.00022191,4]
[365844796,1749954640670,-400.0,0.00022191,4]
[365844797,1749954640679,-460.0,0.00022191,4]
[365844798,1749954640689,-348.95621755,0.00022191,4]
[365844799,1749954640698,-460.0,0.00022191,4]
[365844800,1749954640707,-460.0,0.00022191,4]
[365844801,1749954640717,-191.91520592,0.00022191,4]
[365844802,1749954640731,-422.62706853,0.00022191,4]
[365844803,1749954640740,-460.0,0.00022191,4]
[365844804,1749954640750,-460.0,0.00022191,4]
[365844805,1749954640760,-403.50870387,0.00022191,4]
[365844807,1749954640770,-460.0,0.00022191,4]
[365844809,1749954640780,-460.0,0.00022191,4]
[365844811,1749954640790,-460.0,0.00022191,4]
[365844813,1749954640802,-330.35257922,0.00022191,4]
[365844815,1749954640812,-460.0,0.00022191,4]
[365844817,1749954640821,-460.0,0.00022191,4]
[365844819,1749954640830,-460.0,0.00022191,4]
[365844821,1749954640840,-460.0,0.00022191,4]
[365844823,1749954640849,-460.0,0.00022191,4]
[365844825,1749954640859,-500.0,0.00022191,4]
[365844827,1749954640868,-552.01736444,0.00022191,4]
[365844829,1749954640878,-460.0,0.00022191,4]
[365844831,1749954640887,-460.0,0.00022191,4]
[365844833,1749954640897,-365.18650687,0.00022191,4]
[365844835,1749954640906,-399.12965384,0.00022191,4]
[365844837,1749954640915,-385.49179117,0.00022191,4]
[365844839,1749954640924,-460.0,0.00022191,4]
[365844841,1749954640934,-454.28802195,0.00022191,4]
[365844843,1749954640943,-376.99774531,0.00022191,4]
[365844845,1749954640952,-460.0,0.00022191,4]
[365844847,1749954640961,-410.0,0.00022191,4]
[365844849,1749954640972,-463.04626393,0.00022191,4]
[365844851,1749954640980,-404.60292429,0.00022191,4]
[365844853,1749954640990,-410.0,0.00022191,4]
[365844855,1749954640998,-460.0,0.00022191,4]
[365844857,1749954641007,-410.0,0.00022191,4]
[365844859,1749954641016,-460.0,0.00022191,4]
[365844861,1749954641026,-460.0,0.00022191,4]
[365844863,1749954641035,-384.55519554,0.00022191,4]
[365844865,1749954641044,-382.19491668,0.00022191,4]
[365844866,1749954641053,-460.0,0.00022191,4]
[365844869,1749954641063,-460.0,0.00022191,4]
[365844871,1749954641072,-406.15811474,0.00022191,4]
[365844873,1749954641081,-460.0,0.00022191,4]
[365844874,1749954641090,-442.87151111,0.00022191,4]
[365844877,1749954641100,-484.49168496,0.00022191,4]
[365844878,1749954641109,-304.49044796,0.00022191,4]
[365844881,1749954641119,-167.71046366,0.00022191,4]
[365844883,1749954641128,-460.0,0.00022191,4]
[365844885,1749954641138,-422.39713316,0.00022191,4]
[365844887,1749954641147,-406.08469351,0.00022191,4]
[365844889,1749954641156,-460.0,0.00022191,4]
[365844891,1749954641165,-351.07578782,0.00022191,4]
[365844893,1749954641175,-460.0,0.00022191,4]
[365844895,1749954641184,-460.0,0.00022191,4]
[365844897,1749954641193,-460.0,0.00022191,4]
[365844899,1749954641202,-404.87897584,0.00022191,4]
[365844901,1749954641211,-460.0,0.00022191,4]
[365844903,1749954641220,-460.0,0.00022191,4]
[365844905,1749954641230,-460.0,0.00022191,4]
[365844907,1749954641239,-460.0,0.00022191,4]
[365844909,1749954641248,-460.0,0.00022191,4]
[365844911,1749954641258,-390.22,0.00022191,4]
[365844913,1749954641267,-460.0,0.00022191,4]
[365844915,1749954641276,-460.0,0.00022191,4]
[365844917,1749954641285,-460.0,0.00022191,4]
[365844919,1749954641295,-200.46170455,0.00022191,4]
[365844921,1749954641304,-460.89,0.00022191,4]
[365844923,1749954641313,-569.50381018,0.00022191,4]
[365844925,1749954641327,-460.0,0.00022191,4]
[365844927,1749954641336,-460.0,0.00022191,4]
[365844929,1749954641346,-500.0,0.00022191,4]
[365844931,1749954641355,-460.0,0.00022191,4]
[365844933,1749954641365,-460.0,0.00022191,4]
[365844935,1749954641374,-460.0,0.00022191,4]
[365844937,1749954641383,-460.0,0.00022191,4]
[365844939,1749954641393,-460.0,0.00022191,4]
[365844941,1749954641403,-225.14579487,0.00022191,4]
[365844943,1749954641413,-460.0,0.00022191,4]
[365844945,1749954641421,-460.0,0.00022191,4]
[365844946,1749954641431,-459.3132193,0.00022191,4]
[365844947,1749954641441,-454.21706211,0.00022191,4]
[365844948,1749954641452,-460.0,0.00022191,4]
[365844949,1749954641462,-478.03177697,0.00022191,4]
[365844950,1749954641472,-555.14593144,0.00022191,4]
[365844951,1749954641481,-460.0,0.00022191,4]
[365844952,1749954641491,-276.28674074,0.00022191,4]
[365844953,1749954641501,-590.85,0.00022191,4]
[365844954,1749954641511,-460.0,0.00022191,4]
[365844955,1749954641520,-582.37,0.00022191,4]
[365844956,1749954641530,-460.0,0.00022191,4]
[365844957,1749954641539,-460.0,0.00022191,4]
[365844958,1749954641549,-460.0,0.00022191,4]
[365844959,1749954641558,-1067.47,0.00022191,4]
[365844960,1749954641568,-486.11634837,0.00022191,4]
[365844961,1749954641578,-460.0,0.00022191,4]
[365844962,1749954641587,-460.0,0.00022191,4]
[365844963,1749954641596,-460.0,0.00022191,4]
[365844965,1749954641605,-460.0,0.00022191,4]
[365844966,1749954641614,-460.0,0.00022191,4]
[365844967,1749954641624,-467.65048428,0.00022191,4]
[365844969,1749954641634,-316.61051588,0.00022191,4]
[365844971,1749954641643,-460.0,0.00022191,4]
[365844973,1749954641652,-460.0,0.00022191,4]
[365844975,1749954641662,-460.0,0.00022191,4]
[365844977,1749954641672,-430.0,0.00022191,4]
[365844979,1749954641682,-758.84,0.00022191,4]
[365844982,1749954641692,-460.0,0.00022191,4]
[365844983,1749954641701,-460.0,0.00022191,4]
[365844985,1749954641711,-392.2943854,0.00022191,4]
[365844987,1749954641725,-460.0,0.00022191,4]
[365844990,1749954641734,-395.40081918,0.00022191,4]
[365844992,1749954641744,-460.0,0.00022191,4]
[365844994,1749954641754,-394.42236886,0.00022191,4]
[365844996,1749954641766,-460.0,0.00022191,4]
[365844998,1749954641776,-460.0,0.00022191,4]
[365845000,1749954641786,-460.0,0.00022191,4]
[365845002,1749954641797,-460.0,0.00022191,4]
[365845004,1749954641808,-405.08251545,0.00022191,4]
[365845006,1749954641817,-460.0,0.00022191,4]
[365845008,1749954641827,-460.0,0.00022191,4]
[365845010,1749954641836,-4092.25,0.00022191,4]
[365845012,1749954641846,-460.0,0.00022191,4]
[365845014,1749954641855,-2832.93,0.00022191,4]
[365845016,1749954641864,-460.0,0.00022191,4]
[365845018,1749954641874,-460.0,0.00022191,4]
[365845020,1749954641883,-400.0,0.00022191,4]
[365845022,1749954641893,-804.27,0.00022191,4]
[365845024,1749954641903,-831.16,0.00022191,4]
[365845026,1749954641913,-566.54,0.00022191,2]
[365845028,1749954641922,-684.13,0.00022191,4]
[365845030,1749954641931,-816.86,0.00022191,4]
[365845032,1749954641941,-609.0,0.00022191,4]
[365845034,1749954641949,-460.0,0.00022191,4]
[365845036,1749954641959,-577.95,0.00022191,4]
[365845038,1749954641968,-460.0,0.00022191,4]
[365845040,1749954641977,-460.0,0.00022191,4]
[365845042,1749954641986,-1734.77,0.00022191,4]
[365845044,1749954641995,-460.0,0.00022191,4]
[365845046,1749954642004,-481.07,0.00022191,4]
[365845048,1749954642014,-282.20376804,0.00022191,4]
[365845050,1749954642023,-548.71169075,0.00022191,4]
[365845052,1749954642033,-460.0,0.00022191,4]
[365845054,1749954642042,-460.0,0.00022191,4]
[365845056,1749954642052,-460.0,0.00022191,4]
[365845058,1749954642062,-451.44654738,0.00022191,4]
[365845060,1749954642072,-460.0,0.00022191,4]
[365845062,1749954642082,-460.0,0.00022191,4]
[365845064,1749954642091,-695.4,0.00022191,4]
[365845066,1749954642101,-460.0,0.00022191,4]
[365845068,1749954642111,-460.0,0.00022191,4]
[365845070,1749954642120,-460.0,0.00022191,4]
[365845072,1749954642130,-3293.23,0.00022191,4]
[365845074,1749954642139,-460.0,0.00022191,4]
[365845075,1749954642148,-2865.98,0.00022191,4]
[365845077,1749954642157,-460.0,0.00022191,4]
[365845079,1749954642166,-460.0,0.00022191,4]
[365845082,1749954642176,-3795.48,0.00022191,4]
[365845084,1749954642185,-1832.68,0.00022191,4]
[365845086,1749954642195,-460.0,0.00022191,4]
[365845088,1749954642204,-801.64,0.00022191,4]
[365845090,1749954642213,-166.50332855,0.00022191,4]
[365845092,1749954642223,-460.0,0.00022191,4]
[365845094,1749954642232,-460.0,0.00022191,4]
[365845096,1749954642242,-1305.94,0.00022191,4]
[365845098,1749954642251,-460.0,0.00022191,4]
[365845100,1749954642260,-472.14467366,0.00022191,4]
[365845102,1749954642270,-386.59827541,0.00022191,4]
[365845104,1749954642279,-460.0,0.00022191,4]
[365845106,1749954642288,-460.0,0.00022191,4]
[365845108,1749954642300,-1468.44,0.00022191,4]
[365845110,1749954642309,-460.0,0.00022191,4]
[365845112,1749954642318,-500.0,0.00022191,4]
[365845114,1749954642327,-460.0,0.00022191,4]
[365845116,1749954642337,-460.0,0.00022191,4]
[365845118,1749954642347,-876.43,0.00022191,4]
[365845120,1749954642356,-460.0,0.00022191,4]
[365845122,1749954642366,-330.0,0.00022191,4]
[365845124,1749954642375,-723.62,0.00022191,4]
[365845126,1749954642384,-427.76040466,0.00022191,4]
[365845128,1749954642393,-460.0,0.00022191,4]
[365845130,1749954642402,-460.0,0.00022191,4]
[365845132,1749954642411,-487.73,0.00022191,4]
[365845134,1749954642420,-460.0,0.00022191,4]
[365845136,1749954642430,-460.0,0.00022191,4]
[365845138,1749954642439,-478.49,0.00022191,4]
[365845140,1749954642448,-460.0,0.00022191,4]
[365845142,1749954642457,-460.0,0.00022191,4]
[365845144,1749954642467,-378.82161306,0.00022191,4]
[365845146,1749954642476,-1956.94,0.00022191,4]
[365845148,1749954642485,-460.0,0.00022191,4]
[365845150,1749954642494,-460.0,0.00022191,4]
[365845152,1749954642504,-460.0,0.00022191,4]
[365845154,1749954642514,-460.0,0.00022191,4]
[365845156,1749954642523,-460.0,0.00022191,4]
[365845158,1749954642532,-391.36358926,0.00022191,4]
[365845160,1749954642542,-599.55,0.00022191,4]
[365845162,1749954642552,-460.0,0.00022191,4]
[365845164,1749954642561,-771.81,0.00022191,4]
[365845166,1749954642571,-547.36,0.00022191,4]
[365845168,1749954642580,-460.0,0.00022191,4]
[365845170,1749954642590,-299.71866331,0.00022191,4]
[365845172,1749954642599,-406.05364931,0.00022191,4]
[365845174,1749954642608,-460.0,0.00022191,4]
[365845176,1749954642617,-460.0,0.00022191,4]
[365845178,1749954642627,-550.37,0.00022191,4]
[365845180,1749954642636,-460.0,0.00022191,4]
[365845182,1749954642645,-460.0,0.00022191,4]
[365845184,1749954642655,-460.0,0.00022191,4]
[365845186,1749954642664,-848.24,0.00022191,4]
[365845188,1749954642674,-1181.15,0.00022191,4]
[365845190,1749954642683,-460.0,0.00022191,4]
[365845192,1749954642692,-1788.48,0.00022191,4]
[365845194,1749954642701,-3035.77,0.00022191,4]
[365845196,1749954642711,-573.35,0.00022191,4]
[365845198,1749954642722,-460.0,0.00022191,4]
[365845200,1749954642732,-297.39743856,0.00022191,4]
[365845202,1749954642742,-344.54775977,0.00022191,4]
[365845204,1749954642751,-460.0,0.00022191,4]
[365845206,1749954642761,-460.0,0.00022191,4]
[365845208,1749954642771,-460.0,0.00022191,4]
[365845210,1749954642780,-460.0,0.00022191,4]
[365845212,1749954642790,-2351.53,0.00022191,4]
[365845214,1749954642801,-460.0,0.00022191,4]
[365845216,1749954642811,-460.0,0.00022191,4]
[365845218,1749954642821,-396.84779824,0.00022191,4]
[365845220,1749954642831,-460.0,0.00022191,4]
[365845223,1749954642842,-599.49,0.00022191,4]
[365845225,1749954642851,-426.74845399,0.00022191,4]
[365845227,1749954642860,-474.97,0.00022191,4]
[365845229,1749954642869,-460.0,0.00022191,4]
[365845231,1749954642878,-497.51,0.00022191,4]
[365845232,1749954642887,-398.0002133,0.00022191,4]
[365845235,1749954642897,-457.05108035,0.00022191,4]
[365845236,1749954642907,-290.4522227,0.00022191,4]
[365845238,1749954642916,-378.76723169,0.00022191,4]
[365845240,1749954642925,-460.0,0.00022191,4]
[365845242,1749954642936,-460.0,0.00022191,4]
[365845244,1749954642945,-462.34120084,0.00022191,4]
[365845246,1749954642955,-460.0,0.00022191,4]
[365845248,1749954642965,-460.0,0.00022191,4]
[365845250,1749954642974,-426.95569456,0.00022191,4]
[365845252,1749954642983,-2043.55,0.00022191,4]
[365845254,1749954642993,-460.0,0.00022191,4]
[365845256,1749954643003,-683.09,0.00022191,4]
[365845258,1749954643013,-460.0,0.00022191,4]
[365845260,1749954643022,-2231.34,0.00022191,4]
[365845262,1749954643032,-500.0,0.0002225,2]
[365845265,1749954643042,-168.0,0.00022284,2]
[365845267,1749954643052,-160.0,0.00022308,2]
[365845269,1749954643062,-160.0,0.00022308,2]
[365845271,1749954643072,-160.0,0.00022308,2]
[365845273,1749954643081,-835.55256958,0.00022308,2]
[365845275,1749954643091,-229.86375354,0.00022308,2]
[365845277,1749954643100,-160.0,0.00022308,2]
[365845279,1749954643109,-424.47602138,0.00022308,2]
[365845281,1749954643119,-845.25843836,0.00022308,2]
[365845283,1749954643129,-502.75826845,0.00022463,4]
[365845285,1749954643139,-151.0,0.00022465,7]
[365845287,1749954643148,-151.0,0.00022465,7]
[365845289,1749954643159,-204.472412,0.00022465,7]
[365845292,1749954643168,-204.472412,0.00022465,7]
[365845294,1749954643177,-354.05432075,0.00022465,4]
[365845296,1749954643188,-250.0,0.00022465,4]
[365845298,1749954643198,-460.0,0.00022465,4]
[365845300,1749954643207,-152.875921,0.00022465,7]
[365845302,1749954643217,-460.0,0.00022465,4]
[365845304,1749954643227,-460.0,0.00022465,4]
[365845308,1749954643237,-460.0,0.00022465,4]
[365845326,1749954643365,-360.0,0.00022465,4]
[365845328,1749954643375,-460.0,0.00022465,4]
[365845330,1749954643386,-460.0,0.00022465,4]
[365845332,1749954643396,-386.15981882,0.00022465,4]
[365845334,1749954643406,-370.0,0.00022465,4]
[365845336,1749954643416,-276.6361336,0.00022465,4]
[365845338,1749954643426,-290.44680936,0.00022465,4]
[365845340,1749954643435,-460.0,0.00022465,4]
[365845342,1749954643445,-460.0,0.00022465,4]
[365845344,1749954643455,-460.0,0.00022465,4]
[365845346,1749954643464,-460.0,0.00022465,4]
[365845348,1749954643474,-460.0,0.00022465,4]
[365845350,1749954643483,-214.97288861,0.00022465,4]
[365845352,1749954643493,-460.0,0.00022465,4]
[365845354,1749954643504,-460.0,0.00022465,4]
[365845356,1749954643514,-460.0,0.00022465,4]
[365845358,1749954643523,-516.00576966,0.00022465,4]
[365845360,1749954643532,-460.0,0.00022465,4]
[365845362,1749954643542,-179.74468648,0.00022465,4]
[365845364,1749954643553,-460.0,0.00022465,4]
[365845366,1749954643562,-326.71,0.00022465,4]
[365845368,1749954643571,-460.0,0.00022465,4]